bitfinex/quotes_SOLUSD_20250307
["timestamp","ask_amount","ask_price","bid_price","bid_amount"]
[1741340048761,2.4418737,146.53,146.45,88.98]
[1741340048971,0.6825,146.51,146.44,6.86]
[1741340049270,1.6139,146.49,146.44,6.86]
[1741340049447,1.44319182,146.48,146.41,312.0]
[1741340049773,6.4627,146.47,146.41,312.0]
[1741340049962,6.4627,146.47,146.42,0.14216157]
[1741340050164,6.4627,146.47,146.41,312.0]
[1741340050559,1.6139,146.49,146.4,226.76]
[1741340050765,1.6139,146.49,146.41,0.14216157]
[1741340050952,0.6826,146.48,146.41,0.14216157]
[1741340051283,0.6826,146.48,146.41,220.04216157]
[1741340051438,1.6139,146.49,146.41,220.04216157]
[1741340051644,1.7594737,146.53,146.43,0.14216157]
[1741340051858,1.7594737,146.53,146.45,0.14216157]
[1741340052084,1.7594737,146.53,146.47,0.14216157]
[1741340052243,1.7594737,146.53,146.47,82.24216157]
[1741340053379,1.7594737,146.53,146.47,220.04216157]
[1741340053582,1.7594737,146.53,146.52,312.14216157]
[1741340053787,1.7594737,146.53,146.52,319.00216157]
[1741340055057,1.7594737,146.53,146.52,312.0]
[1741340055443,1.7594737,146.53,146.52,312.14216157]
[1741340056844,1.7594737,146.53,146.52,312.0]
[1741340057043,1.7594737,146.53,146.45,137.8]
[1741340057044,6.6333,146.52,146.45,82.1]
[1741340057275,0.14216157,146.5,146.39,95.4521]
[1741340057471,83.44319182,146.49,146.4,0.14216157]
[1741340057751,82.0,146.48,146.39,82.1]
[1741340058054,1.44319182,146.47,146.42,312.0]
[1741340058256,82.0,146.47,146.42,312.0]
[1741340058462,83.44319182,146.46,146.42,312.0]
[1741340058668,83.44319182,146.46,146.38,6.92]
[1741340058975,82.0,146.45,146.37,6.92]
[1741340059291,0.14216157,146.41,146.29,6.92]
[1741340059448,82.0,146.4,146.29,6.92]
[1741340059649,1.44319182,146.39,146.29,6.92]
[1741340059856,1.44319182,146.39,146.31,0.14216157]
[1741340060070,1.44319182,146.39,146.3,6.92]
[1741340060471,1.44319182,146.39,146.28,0.033]
[1741340060662,82.14216157,146.38,146.3,6.92]
[1741340060856,83.44319182,146.37,146.28,0.033]
[1741340061656,83.44319182,146.37,146.3,312.0]
[1741340062667,0.14216157,146.36,146.3,312.0]
[1741340062867,83.44319182,146.37,146.3,312.0]
[1741340063658,83.44319182,146.37,146.31,0.14216157]
[1741340063971,0.14216157,146.33,146.28,0.033]
[1741340064293,0.14216157,146.3,146.28,0.0001]
[1741340064462,83.44319182,146.29,146.22,0.033]
[1741340064658,0.14216157,146.28,146.22,0.033]
[1741340064860,0.14216157,146.26,146.22,0.0001]
[1741340065092,82.0,146.25,146.22,0.0001]
[1741340065295,1.44319182,146.24,146.22,0.0001]
[1741340065787,88.55316157,146.23,146.14,0.033]
[1741340065978,83.44319182,146.22,146.14,0.033]
[1741340066191,82.14216157,146.21,146.14,0.033]
[1741340066392,1.44319182,146.2,146.14,0.033]
[1741340067783,3.08009182,146.2,146.14,0.033]
[1741340068888,3.6369,146.28,146.15,0.14216157]
[1741340069085,83.44319182,146.27,146.15,0.14216157]
[1741340069287,18.64964886,146.26,146.15,0.14216157]
[1741340069489,0.14216157,146.24,146.14,0.033]
[1741340069688,0.14216157,146.22,146.14,0.033]
[1741340069890,1.44319182,146.21,146.14,0.033]
[1741340070095,83.44319182,146.21,146.14,0.033]
[1741340070573,0.14216157,146.2,146.14,0.033]
[1741340070776,0.14216157,146.18,146.13,0.033]
[1741340070976,0.14216157,146.16,146.08,0.033]
[1741340071278,83.44319182,146.15,146.08,0.033]
[1741340072324,83.44319182,146.15,146.08,312.033]
[1741340072679,82.14216157,146.14,146.08,0.033]
[1741340072875,83.44319182,146.13,146.08,0.033]
[1741340073105,82.0,146.13,146.08,0.033]
[1741340073315,1.44319182,146.15,146.08,0.033]
[1741340073316,82.0,146.15,146.08,0.033]
[1741340073519,1.44319182,146.14,146.08,0.033]
[1741340073713,0.14216157,146.15,146.08,0.033]
[1741340073903,1.44319182,146.14,146.08,0.033]
[1741340074714,0.14216157,146.13,146.08,0.033]
[1741340074912,0.14216157,146.12,146.08,0.033]
[1741340075106,1.58535339,146.12,146.08,0.033]
[1741340075915,1.58535339,146.12,146.05,312.0]
[1741340076108,0.14216157,146.1,146.05,312.0]
[1741340076289,1.58535339,146.1,146.05,312.0]
[1741340076704,0.14216157,146.08,145.99,82.133]
[1741340076909,82.0,146.07,145.99,82.133]
[1741340077107,83.44319182,146.06,145.99,0.033]
[1741340077334,82.0,146.05,145.99,0.033]
[1741340077519,82.0,146.04,145.99,0.033]
[1741340078506,83.44319182,146.03,145.99,0.033]
[1741340078824,82.0,146.03,145.99,0.033]
[1741340079614,82.0,146.03,146.01,0.14216157]
[1741340080011,82.0,146.09,146.01,0.14216157]
[1741340080319,10.69099418,146.11,146.01,227.06216157]
[1741340080627,10.69099418,146.11,146.03,0.14216157]
[1741340081123,83.44319182,146.13,146.03,0.14216157]
[1741340081423,82.0,146.13,146.05,0.14216157]
[1741340082902,3.13439182,146.18,146.03,82.133]
[1741340082903,82.14216157,146.12,146.03,82.133]
[1741340083116,82.14216157,146.12,146.04,312.0]
[1741340083298,82.0,146.12,146.05,0.14216157]
[1741340083498,0.14216157,146.15,146.05,0.14216157]
[1741340084718,0.14216157,146.13,146.05,0.14216157]
[1741340084913,0.14216157,146.11,146.03,0.033]
[1741340086007,82.0,146.1,146.03,0.033]
[1741340086211,82.0,146.09,146.03,0.033]
[1741340086422,82.0,146.08,146.03,0.033]
[1741340086604,83.44319182,146.08,146.03,312.033]
[1741340086806,82.0,146.08,146.04,0.14216157]
[1741340087330,82.0,146.08,146.03,312.033]
[1741340087508,82.0,146.08,146.04,0.14216157]
[1741340088109,82.0,146.08,146.03,0.033]
[1741340092716,82.0,146.07,146.03,0.033]
[1741340092918,1.58535339,146.09,146.03,0.033]
[1741340093103,82.0,146.08,146.03,0.033]
[1741340094008,82.0,146.08,146.04,0.14216157]
[1741340094624,1.44319182,146.07,146.03,0.033]
[1741340094837,83.44319182,146.07,146.03,0.033]
[1741340095016,82.0,146.07,146.03,0.033]
[1741340097528,82.0,146.07,146.05,0.14216157]
[1741340098027,82.0,146.07,146.03,0.033]
[1741340099328,1.44319182,146.11,146.03,0.033]
[1741340099720,82.14216157,146.1,146.03,0.033]
[1741340099920,1.44319182,146.09,146.03,0.033]
[1741340100119,83.44319182,146.09,146.03,0.033]
[1741340100923,0.14216157,146.08,146.03,0.033]
[1741340101642,6.73096157,146.06,145.99,0.033]
[1741340101938,83.44319182,146.05,145.99,0.033]
[1741340102728,82.14216157,146.04,145.99,0.033]
[1741340102922,82.0,146.04,145.99,0.033]
[1741340103112,1.58535339,146.03,145.99,0.033]
[1741340103442,0.14216157,146.01,145.99,0.0001]
[1741340103737,1.58535339,146.01,145.98,0.0001]
[1741340104453,1.58535339,146.01,145.92,7.06]
[1741340104454,2.0,145.98,145.92,308.8155]
[1741340104620,18.79181043,145.96,145.84,82.1]
[1741340104936,18.79181043,145.94,145.88,0.0001]
[1741340105117,18.79181043,145.92,145.88,0.0001]
[1741340105321,0.14216157,145.9,145.8,0.4336]
[1741340105515,18.64964886,145.92,145.8,312.4336]
[1741340105516,0.14216157,145.88,145.8,312.4336]
[1741340105758,0.14216157,145.88,145.77,226.162]
[1741340106237,83.44319182,145.89,145.78,7.04]
[1741340106440,0.14216157,145.91,145.79,18.64964886]
[1741340106736,1.44319182,145.91,145.86,0.14216157]
[1741340107246,1.44319182,145.91,145.81,18.79181043]
[1741340107535,0.14216157,145.9,145.8,82.1]
[1741340107741,1.44319182,145.89,145.83,0.033]
[1741340108236,1.44319182,145.91,145.83,0.033]
[1741340108416,1.44319182,145.93,145.83,0.033]
[1741340108622,0.14216157,145.92,145.83,0.033]
[1741340108843,0.14216157,145.9,145.83,0.033]
[1741340110221,0.14216157,145.9,145.88,312.0]
[1741340110740,82.14216157,145.89,145.83,0.033]
[1741340110932,82.0,145.89,145.83,0.033]
[1741340111122,83.58535339,145.88,145.83,0.033]
[1741340111322,82.0,145.87,145.83,0.033]
[1741340111528,1.44319182,145.9,145.83,0.033]
[1741340111736,1.44319182,145.9,145.87,312.0]
[1741340111942,90.374,145.98,145.88,0.14216157]
[1741340112147,83.44319182,145.97,145.88,0.14216157]
[1741340112323,83.44319182,145.97,145.87,82.1]
[1741340112324,82.0,145.97,145.9,18.79181043]
[1741340112626,82.0,146.01,145.9,0.14216157]
[1741340112832,83.58535339,146.0,145.9,0.14216157]
[1741340113139,82.0,145.99,145.9,0.14216157]
[1741340113327,1.44319182,145.98,145.9,0.14216157]
[1741340113540,82.0,145.97,145.9,0.14216157]
[1741340114634,83.58535339,145.96,145.9,0.14216157]
[1741340114928,83.58535339,145.96,145.86,88.7169]
[1741340114929,0.14216157,145.94,145.87,0.14216157]
[1741340115226,83.58535339,145.94,145.9,312.0]
[1741340115730,82.0,145.94,145.9,312.0]
[1741340115927,82.0,145.94,145.86,6.6169]
[1741340115928,82.0,145.94,145.91,0.14216157]
[1741340116427,0.14216157,145.97,145.87,0.14216157]
[1741340116629,82.0,145.96,145.87,82.24216157]
[1741340117824,83.58535339,145.95,145.87,0.14216157]
[1741340118029,82.0,145.94,145.87,0.14216157]
[1741340118355,1.44319182,145.93,145.86,6.6169]
[1741340118654,82.14216157,145.92,145.87,0.033]
[1741340118956,0.14216157,145.9,145.83,0.033]
[1741340119125,83.44319182,145.89,145.83,0.033]
[1741340119465,18.79181043,145.87,145.76,88.4565]
[1741340119662,83.44319182,145.86,145.77,0.14216157]
[1741340119946,83.44319182,145.86,145.76,82.1]
[1741340120148,0.14216157,145.85,145.76,82.1]
[1741340120350,0.14216157,145.83,145.76,82.1]
[1741340120532,0.14216157,145.81,145.74,0.033]
[1741340120844,82.0,145.8,145.74,0.033]
[1741340121149,0.14216157,145.84,145.75,18.79181043]
[1741340121340,83.44319182,145.85,145.75,100.89181043]
[1741340122031,83.44319182,145.85,145.82,0.14216157]
[1741340122231,82.0,145.85,145.82,0.14216157]
[1741340122640,82.0,145.85,145.79,0.14216157]
[1741340123148,82.0,145.87,145.81,0.14216157]
[1741340123932,20.30274886,145.91,145.81,0.14216157]
[1741340123933,82.0,145.9,145.81,100.89181043]
[1741340125548,82.14216157,145.89,145.85,312.0]
[1741340125747,83.44319182,145.88,145.82,0.14216157]
[1741340126128,0.14216157,145.87,145.82,0.14216157]
[1741340126450,82.14216157,145.87,145.81,0.14216157]
[1741340126639,1.44319182,145.86,145.8,7.06]
[1741340126841,1.44319182,145.86,145.81,0.14216157]
[1741340128254,82.0,145.9,145.81,18.79181043]
[1741340128432,103.42701325,145.94,145.81,100.89181043]
[1741340128755,0.14216157,145.92,145.88,0.14216157]
[1741340128933,83.44319182,145.92,145.88,0.14216157]
[1741340129452,100.79181043,145.91,145.8,7.06]
[1741340129638,18.79181043,145.89,145.79,7.04]
[1741340129841,1.44319182,145.88,145.8,0.14216157]
[1741340130037,83.44319182,145.88,145.8,0.14216157]
[1741340130751,82.14216157,145.87,145.79,7.04]
[1741340130958,1.44319182,145.86,145.79,7.04]
[1741340131144,0.14216157,145.84,145.79,7.04]
[1741340131344,1.58535339,145.84,145.79,7.04]
[1741340131543,0.14216157,145.82,145.73,0.033]
[1741340131735,1.58535339,145.82,145.75,7.02]
[1741340131936,1.58535339,145.82,145.75,16.420604]
[1741340132137,1.44319182,145.82,145.78,0.14216157]
[1741340132338,82.0,145.83,145.78,0.14216157]
[1741340132642,83.44319182,145.83,145.76,0.14216157]
[1741340132837,0.14216157,145.82,145.76,7.16216157]
[1741340133038,1.44319182,145.81,145.76,7.16216157]
[1741340133739,1.44319182,145.81,145.73,100.78264886]
[1741340133740,0.14216157,145.8,145.74,0.033]
[1741340133944,0.14216157,145.78,145.74,0.033]
[1741340134135,1.58535339,145.78,145.74,0.033]
[1741340135643,1.58535339,145.78,145.74,312.033]
[1741340135844,1.58535339,145.78,145.75,0.14216157]
[1741340136053,1.58535339,145.78,145.74,312.033]
[1741340136451,0.14216157,145.76,145.74,312.033]
[1741340137443,0.14216157,145.76,145.74,0.033]
[1741340137645,1.58535339,145.76,145.74,0.033]
[1741340137945,83.58535339,145.76,145.72,0.033]
[1741340138144,0.14216157,145.74,145.72,0.033]
[1741340138375,0.14216157,145.74,145.67,0.033]
[1741340138376,100.79181043,145.73,145.67,0.033]
[1741340138675,0.14216157,145.7,145.66,0.033]
[1741340138870,0.14216157,145.68,145.66,0.033]
[1741340139060,1.58535339,145.68,145.66,0.033]
[1741340139249,100.79181043,145.67,145.66,0.033]
[1741340139451,18.79181043,145.67,145.66,0.033]
[1741340140166,20.23500225,145.67,145.66,0.033]
[1741340142059,1.58535339,145.67,145.66,0.033]
[1741340142387,20.23500225,145.67,145.66,0.033]
[1741340142875,21.88580225,145.67,145.66,0.033]
[1741340143259,21.88580225,145.67,145.65,0.033]
[1741340143566,18.79181043,145.66,145.65,0.033]
[1741340145385,20.79181043,145.66,145.59,0.033]
[1741340145681,18.79181043,145.64,145.59,0.033]
[1741340145974,18.79181043,145.62,145.59,0.033]
[1741340146290,7.0,145.65,145.59,0.033]
[1741340146291,18.79181043,145.6,145.59,0.033]
[1741340146644,0.14216157,145.6,145.59,0.033]
[1741340147849,83.44319182,145.61,145.59,0.033]
[1741340148085,82.0,145.61,145.59,0.033]
[1741340148292,82.0,145.61,145.6,312.0]
[1741340148671,1.44319182,145.64,145.6,312.0]
[1741340148865,1.44319182,145.64,145.61,0.14216157]
[1741340149473,1.44319182,145.64,145.59,0.033]
[1741340149679,1.44319182,145.66,145.59,0.033]
[1741340149880,83.44319182,145.71,145.59,18.82481043]
[1741340150082,83.44319182,145.71,145.61,0.14216157]
[1741340150380,83.44319182,145.71,145.63,0.14216157]
[1741340150381,0.14216157,145.7,145.63,0.14216157]
[1741340150566,83.44319182,145.71,145.63,0.14216157]
[1741340150980,82.0,145.71,145.63,18.79181043]
[1741340151479,83.44319182,145.76,145.63,18.79181043]
[1741340151687,83.44319182,145.76,145.67,0.14216157]
[1741340151867,1.44319182,145.76,145.69,0.14216157]
[1741340152062,1.44319182,145.77,145.74,312.0]
[1741340152288,0.14216157,145.76,145.69,0.14216157]
[1741340152888,83.44319182,145.77,145.69,0.14216157]
[1741340153270,83.44319182,145.77,145.72,312.0]
[1741340153271,18.79181043,145.76,145.72,312.0]
[1741340153586,83.44319182,145.75,145.72,312.0]
[1741340154855,18.64964886,145.78,145.72,312.0]
[1741340155058,0.14216157,145.76,145.72,312.0]
[1741340155878,0.14216157,145.76,145.69,0.14216157]
[1741340156094,83.44319182,145.77,145.69,0.14216157]
[1741340156459,0.14216157,145.76,145.69,0.14216157]
[1741340156659,1.44319182,145.79,145.69,31.78061043]
[1741340156877,1.44319182,145.79,145.69,6.26736157]
[1741340157079,0.03,145.76,145.69,6.26736157]
[1741340157278,0.03,145.76,145.69,6.1252]
[1741340157481,0.14216157,145.75,145.69,6.1252]
[1741340157869,0.14216157,145.75,145.7,0.14216157]
[1741340158074,0.14216157,145.73,145.65,6.2433]
[1741340158275,83.44319182,145.72,145.65,0.033]
[1741340158461,82.14216157,145.71,145.65,0.033]
[1741340158668,0.14216157,145.69,145.65,0.033]
[1741340158870,0.14216157,145.69,145.68,312.0]
[1741340160693,0.14216157,145.69,145.65,0.033]
[1741340161991,0.14216157,145.67,145.59,0.033]
[1741340162189,0.14216157,145.65,145.59,0.033]
[1741340163783,0.14216157,145.65,145.59,312.033]
[1741340163973,0.14216157,145.63,145.59,0.033]
[1741340164173,82.0,145.62,145.59,0.033]
[1741340164574,1.44319182,145.61,145.59,0.033]
[1741340165080,82.14216157,145.6,145.59,0.0001]
[1741340165281,0.14216157,145.6,145.59,0.0001]
[1741340165886,1.58535339,145.6,145.59,0.0001]
[1741340166276,20.23500225,145.6,145.59,0.0001]
[1741340167491,1.58535339,145.6,145.59,0.0001]
[1741340167679,1.44319182,145.62,145.59,0.0001]
[1741340167871,18.64964886,145.61,145.59,0.0001]
[1741340168079,1.58535339,145.6,145.59,0.0001]
[1741340169178,20.23500225,145.6,145.59,0.0001]
[1741340171170,18.79181043,145.59,145.52,1.7924737]
[1741340171396,6.98,145.61,145.52,1.7924737]
[1741340171397,18.79181043,145.57,145.52,1.7924737]
[1741340171598,0.14216157,145.55,145.52,1.7924737]
[1741340171791,1.44319182,145.56,145.53,0.14216157]
[1741340172288,1.58535339,145.59,145.53,0.14216157]
[1741340172482,1.58535339,145.59,145.52,1.7924737]
[1741340173595,0.14216157,145.55,145.52,1.7924737]
[1741340173793,0.14216157,145.53,145.52,1.7348737]
[1741340174091,1.58535339,145.53,145.52,1.7348737]
[1741340175079,82.0,145.54,145.53,0.14216157]
[1741340175280,82.0,145.56,145.53,0.14216157]
[1741340175477,0.14216157,145.54,145.52,1.7348737]
[1741340175884,1.44319182,145.55,145.53,0.14216157]
[1741340176085,82.0,145.56,145.53,0.14216157]
[1741340176288,83.44319182,145.59,145.53,0.14216157]
[1741340177100,0.14216157,145.58,145.53,0.14216157]
[1741340177798,0.14216157,145.56,145.53,0.14216157]
[1741340177999,83.58535339,145.56,145.53,0.14216157]
[1741340178199,83.58535339,145.56,145.55,312.0]
[1741340178403,83.58535339,145.56,145.52,1.7348737]
[1741340179694,0.14216157,145.54,145.52,1.7348737]
[1741340179897,1.58535339,145.54,145.52,1.7348737]
[1741340180986,1.58535339,145.54,145.52,1.7678737]
[1741340181411,1.58535339,145.54,145.52,313.7678737]
[1741340181597,0.14216157,145.54,145.52,313.7678737]
[1741340182190,83.44319182,145.55,145.52,1.7678737]
[1741340182594,82.0,145.55,145.53,0.14216157]
[1741340182795,0.03,145.56,145.53,0.14216157]
[1741340183197,0.14216157,145.55,145.52,1.7678737]
[1741340184596,0.03,145.56,145.53,0.14216157]
[1741340185202,0.03,145.56,145.53,312.14216157]
[1741340185612,0.03,145.56,145.53,318.50566157]
[1741340185803,0.03,145.56,145.53,6.50566157]
[1741340186283,0.03,145.56,145.53,0.14216157]
[1741340188728,0.03,145.56,145.55,312.14216157]
[1741340188930,0.17216157,145.56,145.52,1.7678737]
[1741340189214,1.61535339,145.56,145.52,1.7678737]
[1741340189416,0.03,145.56,145.53,0.14216157]
[1741340189629,1.61535339,145.56,145.52,1.7678737]
[1741340189797,83.61535339,145.56,145.52,1.7678737]
[1741340189995,83.61535339,145.56,145.53,0.14216157]
[1741340190420,82.03,145.56,145.53,0.14216157]
[1741340191617,0.03,145.56,145.53,0.14216157]
[1741340192009,0.03,145.56,145.55,312.14216157]
[1741340194396,0.17216157,145.56,145.52,1.7678737]
[1741340195093,82.17216157,145.56,145.52,1.7678737]
[1741340195494,82.03,145.56,145.52,1.7678737]
[1741340195904,82.03,145.56,145.53,0.14216157]
[1741340196301,83.47319182,145.56,145.53,0.14216157]
[1741340196618,82.03,145.56,145.53,0.14216157]
[1741340198031,1.44319182,145.55,145.53,0.14216157]
[1741340198319,82.03,145.56,145.53,0.14216157]
[1741340198505,1.58535339,145.55,145.52,1.5678737]
[1741340199002,0.14216157,145.53,145.52,1.5678737]
[1741340199191,83.58535339,145.53,145.52,1.5678737]
[1741340200603,82.0,145.55,145.52,1.5678737]
[1741340200804,83.44319182,145.55,145.52,1.5678737]
[1741340202191,82.0,145.55,145.53,0.14216157]
[1741340203793,0.03,145.56,145.53,0.14216157]
[1741340204325,0.03,145.56,145.53,6.58346157]
[1741340205007,0.03,145.56,145.53,0.14216157]
[1741340205213,0.03,145.56,145.55,312.0]
[1741340205695,0.03,145.56,145.55,312.14216157]
[1741340209703,0.03,145.56,145.52,1.5678737]
[1741340210224,0.14216157,145.54,145.52,1.5678737]
[1741340210400,83.58535339,145.54,145.52,1.5678737]
[1741340212309,82.0,145.54,145.53,0.14216157]
[1741340212502,82.0,145.54,145.52,1.5678737]
[1741340212503,0.14216157,145.54,145.52,1.5678737]
[1741340212703,1.58535339,145.54,145.52,1.5678737]
[1741340213126,0.14216157,145.54,145.52,1.5678737]
[1741340213628,82.0,145.55,145.52,1.5678737]
[1741340213629,82.0,145.55,145.53,0.14216157]
[1741340213813,0.03,145.56,145.53,0.14216157]
[1741340215126,1.47319182,145.56,145.53,0.14216157]
[1741340215318,0.03,145.56,145.53,0.14216157]
[1741340215903,0.17216157,145.56,145.53,0.14216157]
[1741340216106,1.61535339,145.56,145.53,0.14216157]
[1741340216818,1.61535339,145.56,145.53,312.14216157]
[1741340217017,0.17216157,145.56,145.53,312.14216157]
[1741340218000,0.14216157,145.54,145.52,1.5678737]
[1741340218200,82.14216157,145.54,145.52,1.5678737]
[1741340219401,1.44319182,145.53,145.52,1.5678737]
[1741340219943,82.14216157,145.54,145.52,1.5678737]
[1741340220728,82.0,145.54,145.52,1.5678737]
[1741340220931,82.0,145.54,145.53,0.14216157]
[1741340221221,1.47319182,145.56,145.53,312.14216157]
[1741340221422,0.03,145.56,145.53,312.0]
[1741340221621,0.14216157,145.54,145.52,1.5678737]
[1741340221828,1.58535339,145.54,145.52,1.5678737]
[1741340222028,82.14216157,145.53,145.52,1.5678737]
[1741340223810,82.0,145.53,145.52,1.5678737]
[1741340224526,82.0,145.53,145.52,313.5678737]
[1741340225119,0.03,145.56,145.52,313.71003527]
[1741340225321,0.03,145.56,145.52,1.71003527]
[1741340226117,0.03,145.56,145.53,0.14216157]
[1741340226332,0.03,145.56,145.53,6.65686157]
[1741340227135,0.03,145.56,145.55,0.14216157]
[1741340228124,0.03,145.56,145.55,25.804372]
[1741340228317,0.03,145.56,145.55,330.933972]
[1741340228514,0.03,145.56,145.55,337.804372]
[1741340228714,16.30778689,145.69,145.55,337.804372]
[1741340228715,92.75366881,145.69,145.59,18.79181043]
[1741340228921,92.75366881,145.69,145.61,0.14216157]
[1741340229144,92.75366881,145.69,145.61,100.89181043]
[1741340230430,82.03,145.69,145.61,100.89181043]
[1741340231219,0.03,145.69,145.61,100.89181043]
[1741340231740,82.0,145.68,145.6,6.0698]
[1741340231949,0.14216157,145.66,145.62,0.14216157]
[1741340232149,1.44319182,145.67,145.6,0.14216157]
[1741340232517,0.14216157,145.66,145.59,6.82]
[1741340232748,0.14216157,145.64,145.55,6.82]
[1741340232912,82.0,145.63,145.58,312.0]
[1741340233118,83.44319182,145.67,145.59,0.14216157]
[1741340233351,83.44319182,145.67,145.61,0.14216157]
[1741340233352,82.0,145.67,145.61,0.14216157]
[1741340233648,83.44319182,145.67,145.61,0.14216157]
[1741340233847,1.44319182,145.68,145.61,0.14216157]
[1741340234029,82.03,145.69,145.61,18.79181043]
[1741340234233,0.03,145.69,145.61,240.25941043]
[1741340234637,0.03,145.69,145.61,83.80976157]
[1741340234638,0.14216157,145.68,145.61,83.80976157]
[1741340234864,82.14216157,145.68,145.61,1.70976157]
[1741340235014,1.44319182,145.67,145.61,0.14216157]
[1741340235645,18.79181043,145.66,145.6,6.84]
[1741340235844,1.44319182,145.67,145.6,6.84]
[1741340236155,82.0,145.68,145.61,0.14216157]
[1741340236523,1.44319182,145.67,145.62,0.14216157]
[1741340236727,1.47319182,145.69,145.62,0.14216157]
[1741340237044,1.47319182,145.69,145.62,100.89181043]
[1741340237045,0.03,145.69,145.62,100.89181043]
[1741340237233,83.47319182,145.69,145.63,0.14216157]
[1741340237635,82.03,145.69,145.63,0.14216157]
[1741340237956,82.03,145.69,145.6,0.28432314]
[1741340238642,83.58535339,145.68,145.57,8.0594]
[1741340238862,0.14216157,145.66,145.59,6.86]
[1741340239157,1.58535339,145.66,145.6,0.14216157]
[1741340239363,82.0,145.65,145.59,6.86]
[1741340239729,82.0,145.65,145.6,0.14216157]
[1741340239929,82.0,145.65,145.6,312.14216157]
[1741340240130,82.0,145.65,145.6,0.14216157]
[1741340240330,83.58535339,145.64,145.56,6.84]
[1741340240555,82.0,145.63,145.55,88.94]
[1741340240861,1.44319182,145.62,145.55,88.94]
[1741340241234,1.44319182,145.62,145.56,0.14216157]
[1741340241553,0.14216157,145.61,145.55,88.94]
[1741340241858,82.14216157,145.61,145.56,0.14216157]
[1741340242162,82.0,145.61,145.59,0.033]
[1741340242347,82.0,145.63,145.59,0.033]
[1741340242549,83.44319182,145.65,145.59,0.033]
[1741340242764,0.14216157,145.64,145.59,0.033]
[1741340243066,0.14216157,145.62,145.59,0.033]
[1741340243359,82.14216157,145.62,145.56,0.14216157]
[1741340243558,1.44319182,145.61,145.56,0.14216157]
[1741340243747,0.14216157,145.6,145.55,6.84]
[1741340243943,0.14216157,145.6,145.54,0.14216157]
[1741340244262,82.14216157,145.6,145.52,1.5678737]
[1741340244438,1.44319182,145.59,145.53,0.14216157]
[1741340245339,82.0,145.6,145.53,0.14216157]
[1741340245533,82.0,145.6,145.53,18.79181043]
[1741340245933,82.0,145.6,145.53,0.14216157]
[1741340246344,83.44319182,145.6,145.55,0.14216157]
[1741340246547,0.14216157,145.59,145.55,0.14216157]
[1741340246757,1.44319182,145.58,145.55,0.14216157]
[1741340247056,1.44319182,145.58,145.52,8.4478737]
[1741340247361,82.14216157,145.57,145.52,1.5678737]
[1741340247661,1.44319182,145.56,145.53,0.14216157]
[1741340247847,82.0,145.55,145.53,0.14216157]
[1741340248435,82.0,145.59,145.53,0.14216157]
[1741340248643,83.44319182,145.62,145.53,88.35126157]
[1741340248947,82.0,145.61,145.53,88.35126157]
[1741340249348,82.0,145.61,145.54,0.14216157]
[1741340249550,83.44319182,145.64,145.54,107.77181043]
[1741340249748,82.0,145.64,145.56,18.79181043]
[1741340250060,82.0,145.64,145.59,0.14216157]
[1741340250360,1.44319182,145.65,145.59,0.14216157]
[1741340250555,82.0,145.66,145.59,0.14216157]
[1741340250748,82.0,145.66,145.59,25.67181043]
[1741340251060,0.03,145.67,145.59,107.77181043]
[1741340251967,1.61535339,145.67,145.59,89.12216157]
[1741340252260,82.0,145.66,145.59,7.02216157]
[1741340252462,82.0,145.66,145.59,6.88]
[1741340252463,1.58535339,145.65,145.59,6.88]
[1741340252760,0.14216157,145.63,145.57,6.1436]
[1741340252952,83.58535339,145.63,145.55,6.88]
[1741340253346,83.58535339,145.63,145.56,0.14216157]
[1741340253659,83.58535339,145.63,145.56,312.14216157]
[1741340254365,83.58535339,145.63,145.56,312.0]
[1741340254539,83.58535339,145.63,145.57,0.14216157]
[1741340254735,92.82204574,145.63,145.57,0.14216157]
[1741340254946,0.14,145.59,145.52,1.5678737]
[1741340255147,82.0,145.58,145.52,1.5678737]